bitfinex-derivatives/quotes_SOLF0:USTF0_20241021
["timestamp","ask_amount","ask_price","bid_price","bid_amount"]
[1729498726487,17.8,168.79,168.63,1.3211]
[1729498726691,17.8,168.79,168.64,2.9658]
[1729498727192,20.74612562,168.79,168.64,2.9658]
[1729498733287,20.74612562,168.79,168.63,1.3211]
[1729498734888,20.74612562,168.79,168.58,2.90713114]
[1729498734889,20.74612562,168.79,168.55,2.9673]
[1729498735089,20.74612562,168.79,168.45,228.0]
[1729498735090,30.57970592,168.78,168.56,1.3296]
[1729498735289,17.8,168.76,168.56,1.3296]
[1729498735482,20.83087042,168.76,168.56,1.3296]
[1729498735684,1.3502,168.75,168.56,1.3296]
[1729498735888,17.8,168.73,168.56,1.3296]
[1729498736291,17.8,168.73,168.58,2.9669]
[1729498736493,4.34,168.72,168.57,4.34]
[1729498736888,4.34,168.72,168.6,2.9665]
[1729498738597,19.1502,168.75,168.6,2.9665]
[1729498738802,22.14,168.74,168.6,2.9665]
[1729498740096,1.3502,168.75,168.57,4.34]
[1729498740293,4.34,168.74,168.57,4.34]
[1729498740690,4.34,168.74,168.63,2.966]
[1729498740890,4.34,168.73,168.61,4.34]
[1729498741097,4.34,168.73,168.62,3.9311]
[1729498741295,4.34,168.73,168.65,2.9657]
[1729498741501,4.34,168.73,168.62,3.9311]
[1729498741896,4.34,168.73,168.64,2.9658]
[1729498742299,1.3502,168.75,168.62,3.9311]
[1729498742500,17.8,168.84,168.62,3.9311]
[1729498742696,2.5142,168.82,168.62,3.9311]
[1729498742898,4.34,168.81,168.72,2.9645]
[1729498743094,4.34,168.81,168.7,4.34]
[1729498743701,4.34,168.81,168.71,2.9646]
[1729498744099,1.3078,168.88,168.7,4.34]
[1729498744307,5.5723,168.87,168.7,4.34]
[1729498744601,5.5723,168.87,168.74,2.9641]
[1729498744798,5.5723,168.87,168.69,3.8282]
[1729498744799,5.5723,168.87,168.75,4.34]
[1729498745404,5.5723,168.87,168.69,3.8282]
[1729498745600,5.5723,168.87,168.7,4.34]
[1729498746702,5.5723,168.87,168.73,2.9641]
[1729498746904,5.5723,168.87,168.74,4.34]
[1729498748600,5.5723,168.87,168.69,3.8282]
[1729498748806,5.5723,168.87,168.71,2.9646]
[1729498749902,5.5723,168.87,168.7,7.3048]
[1729498750606,5.5723,168.87,168.69,8.1682]
[1729498750805,17.8,168.86,168.69,6.8315]
[1729498751006,8.45879407,168.85,168.69,6.8315]
[1729498751205,8.45879407,168.85,168.69,9.7965]
[1729498752309,8.45879407,168.85,168.69,6.8315]
[1729498752519,4.4,168.84,168.69,6.8315]
[1729498752815,4.4,168.84,168.7,1.2618]
[1729498753112,2.95777748,168.83,168.71,2.9646]
[1729498753309,4.4,168.84,168.69,6.8315]
[1729498753508,1.2739,168.82,168.69,9.7965]
[1729498753709,3.02628712,168.81,168.69,9.7965]
[1729498753910,4.4,168.8,168.69,9.7965]
[1729498754216,5.6817,168.8,168.69,9.7965]
[1729498754416,1.34,168.79,168.69,9.7965]
[1729498756815,1.34,168.79,168.69,6.8315]
[1729498757015,1.34,168.79,168.69,5.5641]
[1729498759721,1.34,168.79,168.69,1.2241]
[1729498759918,1.34,168.79,168.67,5.6963]
[1729498760521,1.34,168.79,168.67,8.6616]
[1729498760926,1.34,168.79,168.67,5.6963]
[1729498761827,1.34,168.79,168.66,2.9655]
[1729498762028,1.34,168.79,168.65,7.3656]
[1729498762221,1.34,168.79,168.65,4.4]
[1729498762821,1.34,168.79,168.64,7.3658]
[1729498763129,1.34,168.79,168.65,2.9657]
[1729498765330,1.34,168.79,168.66,2.9655]
[1729498765733,1.34,168.79,168.64,4.4]
[1729498766329,4.4,168.78,168.64,7.3658]
[1729498768936,4.4,168.78,168.64,4.4]
[1729498770432,4.4,168.78,168.64,7.3659]
[1729498771240,4.4,168.78,168.64,7.41834605]
[1729498771442,5.74,168.79,168.64,7.41834605]
[1729498771643,5.74,168.79,168.69,2.9649]
[1729498771943,5.74,168.79,168.7,2.6172]
[1729498773740,1.34,168.79,168.7,2.6172]
[1729498773945,5.74,168.79,168.7,2.6172]
[1729498775245,4.4,168.78,168.7,2.6172]
[1729498786345,4.4,168.78,168.64,3.01834605]
[1729498786346,4.4,168.78,168.65,4.34]
[1729498786650,4.4,168.78,168.65,5.6788]
[1729498787047,4.4,168.78,168.65,8.6444]
[1729498789150,4.4,168.78,168.65,5.6788]
[1729498789353,4.4,168.78,168.66,2.9655]
[1729498789654,4.4,168.78,168.65,5.6788]
[1729498789851,4.4,168.78,168.67,2.9653]
[1729498791650,4.4,168.78,168.66,2.9655]
[1729498795151,4.4,168.78,168.65,8.6445]
[1729498796057,12.88874185,168.78,168.65,8.6445]
[1729498797555,4.4,168.78,168.65,8.6445]
[1729498797756,12.88874185,168.78,168.65,8.6445]
[1729498798853,4.4,168.78,168.65,8.6445]
[1729498799154,12.88874185,168.78,168.65,8.6445]
[1729498800158,4.4,168.78,168.65,8.6445]
[1729498800351,12.88874185,168.78,168.65,8.6445]
[1729498801458,4.4,168.78,168.65,8.6445]
[1729498801658,12.88874185,168.78,168.65,8.6445]
[1729498802667,4.4,168.78,168.65,8.6445]
[1729498802856,12.88874185,168.78,168.65,8.6445]
[1729498804961,4.4,168.78,168.65,8.6445]
[1729498805160,12.88874185,168.78,168.65,8.6445]
[1729498805957,8.48874185,168.78,168.65,5.6788]
[1729498806258,4.34,168.78,168.65,8.58974005]
[1729498806761,4.34,168.78,168.69,2.9649]
[1729498806951,4.34,168.78,168.7,1.2684]
[1729498807964,4.34,168.78,168.7,4.2332]
[1729498809459,11.51502897,168.81,168.7,1.2684]
[1729498809662,4.34,168.83,168.71,2.6189]
[1729498810063,1.2993,168.86,168.78,2.9634]
[1729498810259,4.34,168.85,168.76,4.34]
[1729498810561,4.34,168.85,168.77,1.2903]
[1729498811466,4.34,168.85,168.74,7.304]
[1729498812156,4.34,168.85,168.74,4.34]
[1729498812356,4.34,168.85,168.75,2.9639]
[1729498813257,4.34,168.85,168.77,2.9635]
[1729498813458,4.34,168.85,168.74,4.34]
[1729498814367,4.34,168.85,168.76,2.9638]
[1729498815059,4.34,168.85,168.75,2.9639]
[1729498815760,4.34,168.85,168.74,4.34]
[1729498815965,4.34,168.85,168.72,1.2903]
[1729498816153,5.5925,168.85,168.72,5.6303]
[1729498816563,5.5925,168.85,168.72,8.5946]
[1729498816760,5.5925,168.85,168.72,5.6303]
[1729498818068,5.5925,168.85,168.72,8.5946]
[1729498818567,5.5925,168.85,168.73,2.9642]
[1729498818770,5.5925,168.85,168.72,5.6303]
[1729498818969,31.88124185,168.85,168.72,1.2903]
[1729498819167,26.28874185,168.84,168.71,1.2977]
[1729498819366,8.48874185,168.83,168.69,7.3049]
[1729498819560,8.48874185,168.83,168.66,2.4764]
[1729498819561,29.31693159,168.83,168.66,3.8019]
[1729498819864,5.5925,168.85,168.68,2.965]
[1729498819865,26.28874185,168.82,168.68,2.965]
[1729498820064,14.06364185,168.81,168.68,2.965]
[1729498820469,1.3184,168.8,168.68,2.965]
[1729498821566,1.3346,168.79,168.68,2.965]
[1729498821960,1.3346,168.79,168.67,4.34]
[1729498822468,1.3346,168.79,168.67,7.3053]
[1729498823468,1.3346,168.79,168.67,4.34]
[1729498823670,1.3184,168.8,168.67,4.34]
[1729498824169,1.3184,168.8,168.71,2.9645]
[1729498824771,1.3184,168.8,168.69,2.965]
[1729498824973,1.3184,168.8,168.67,4.34]
[1729498825174,2.5419,168.8,168.67,4.34]
[1729498825473,2.5419,168.8,168.68,2.9651]
[1729498826169,2.5419,168.8,168.66,8.1419]
[1729498826365,28.83064185,168.8,168.66,11.1074]
[1729498826574,8.48874185,168.79,168.66,11.1074]
[1729498828177,8.48874185,168.79,168.66,6.7674]
[1729498828979,26.28874185,168.79,168.66,3.8019]
[1729498829181,8.48874185,168.78,168.66,3.8019]
[1729498829478,4.34,168.77,168.66,3.8019]
[1729498829871,4.34,168.77,168.66,2.5485]
[1729498830975,22.14,168.77,168.63,2.966]
[1729498831277,30.62874185,168.77,168.61,8.2136]
[1729498831473,26.28874185,168.76,168.61,8.2136]
[1729498831678,26.28874185,168.75,168.61,11.18]
[1729498831974,26.28874185,168.74,168.61,3.8736]
[1729498832170,26.28874185,168.74,168.47,5.9375]
[1729498832171,17.8,168.72,168.57,4.34]
[1729498832377,20.81140816,168.72,168.55,4.34]
[1729498832572,20.81140816,168.72,168.56,1.4843546]
[1729498832769,20.81140816,168.72,168.57,2.9671]
[1729498832770,17.8,168.7,168.57,2.9671]
[1729498832972,4.34,168.69,168.57,2.9671]
[1729498833174,7.32588775,168.69,168.57,2.9671]
[1729498833383,1.2294,168.68,168.56,2.9672]
[1729498834279,1.2294,168.68,168.57,2.9671]
[1729498834985,1.2294,168.68,168.58,2.9669]
[1729498835178,1.2294,168.68,168.55,5.6646]
[1729498836180,4.34,168.68,168.55,5.6646]
[1729498836379,4.34,168.68,168.56,3.85883015]
[1729498836581,4.34,168.68,168.62,2.9661]
[1729498838498,4.34,168.68,168.62,4.2146]
[1729498840892,4.34,168.69,168.62,4.2146]
[1729498845200,4.34,168.69,168.62,2.9661]
[1729498850402,4.34,168.69,168.64,2.9657]
[1729498851198,4.34,168.69,168.62,2.9661]
[1729498851402,4.34,168.69,168.6,4.34]
[1729498851902,4.34,168.69,168.63,2.966]
[1729498852699,4.34,168.71,168.64,2.9658]
[1729498853008,4.34,168.72,168.65,1.3261]
[1729498854007,4.34,168.72,168.66,2.9655]
[1729498854401,1.3035,168.74,168.67,2.9653]
[1729498854608,5.6435,168.74,168.67,2.9653]
[1729498855307,1.3035,168.74,168.68,2.965]
[1729498855505,4.34,168.74,168.68,2.965]
[1729498855702,4.34,168.74,168.65,3.9465]
[1729498855906,7.32974549,168.74,168.65,3.9465]
[1729498856717,7.32974549,168.74,168.65,2.6003]
[1729498857606,7.32974549,168.74,168.65,5.5659]
[1729498858409,4.34,168.74,168.65,2.6003]
[1729498858909,7.325591,168.74,168.65,2.6003]
[1729498859608,7.325591,168.74,168.66,2.9654]
[1729498859998,4.34,168.74,168.66,2.9654]
[1729498860405,7.23597282,168.74,168.66,2.9654]
[1729498860809,4.34,168.74,168.65,2.6003]
[1729498861010,4.34,168.74,168.67,2.9653]
[1729498862112,4.34,168.74,168.65,2.6003]
[1729498862306,4.34,168.74,168.66,2.9655]
[1729498866108,4.34,168.74,168.65,2.6003]
[1729498866312,4.34,168.74,168.65,5.566]
[1729498866513,7.29408325,168.74,168.65,2.6003]
[1729498867208,7.29408325,168.74,168.62,5.6099]
[1729498867409,1.3259,168.73,168.62,4.34]
[1729498867613,1.3259,168.73,168.58,1.2824]
[1729498867810,2.4829,168.72,168.58,1.2824]
[1729498868208,10.98314276,168.72,168.58,1.2824]
[1729498869916,10.98314276,168.72,168.58,4.2493]
[1729498870114,2.4829,168.72,168.58,1.2824]
[1729498870716,2.4829,168.72,168.58,4.2493]
[1729498873112,2.4829,168.72,168.58,1.2824]
[1729498873312,20.2829,168.72,168.57,6.8815]
[1729498874221,2.4829,168.72,168.57,6.8815]
[1729498874715,17.8,168.71,168.57,6.8815]
[1729498875016,4.34,168.7,168.57,6.8815]
[1729498875610,22.14,168.7,168.57,6.8815]
[1729498875806,22.14,168.7,168.57,2.5415]
[1729498877119,22.14,168.7,168.53,4.2301]
[1729498877325,22.14,168.7,168.54,4.34]
[1729498877714,22.14,168.7,168.53,1.221]
[1729498877914,17.8,168.68,168.53,1.221]
[1729498878412,64.1,168.67,168.53,1.221]
[1729498878720,64.1,168.67,168.49,5.683]
[1729498878721,22.14,168.66,168.49,5.683]
[1729498879018,26.0083,168.66,168.49,6.904]
[1729498879217,26.0083,168.66,168.36,228.0]
[1729498879413,17.8,168.64,168.39,2.549]
[1729498879614,17.8,168.63,168.47,2.9688]
[1729498879817,22.14,168.63,168.48,1.221]
[1729498880616,22.14,168.63,168.46,1.2737]
[1729498881018,8.46617886,168.62,168.46,1.2737]
[1729498881224,17.8,168.61,168.46,1.2737]
[1729498882121,17.8,168.62,168.46,1.2737]
[1729498882322,17.8,168.62,168.44,2.9694]
[1729498882522,17.8,168.62,168.42,5.6053]
[1729498883321,17.8,168.62,168.46,2.969]
[1729498883529,17.8,168.62,168.46,7.309]
[1729498886023,17.8,168.62,168.47,2.9689]
[1729498886523,17.8,168.62,168.46,7.309]
[1729498887526,17.8,168.62,168.46,2.969]
[1729498887726,17.8,168.62,168.46,7.309]
[1729498888321,17.8,168.62,168.46,4.34]
[1729498888923,17.8,168.62,168.46,7.3089]
[1729498890230,17.8,168.62,168.46,2.9689]
[1729498892729,17.8,168.62,168.45,4.34]
[1729498893729,17.8,168.65,168.45,7.31006746]
[1729498893928,6.83018331,168.66,168.46,1.3025]
[1729498894129,4.34,168.65,168.46,1.3025]
[1729498894528,4.34,168.65,168.47,1.48474249]
[1729498894728,4.34,168.65,168.46,1.3025]
[1729498894926,4.34,168.65,168.55,2.9673]
[1729498896935,4.34,168.65,168.54,4.34]
[1729498900835,4.34,168.65,168.51,2.968]
[1729498901033,22.14,168.65,168.51,7.368]
[1729498901227,22.14,168.65,168.51,4.4]
[1729498906936,22.14,168.65,168.52,2.9679]
[1729498907936,22.14,168.65,168.45,2.97006746]
[1729498908141,22.14,168.65,168.46,4.4]
[1729498908338,22.14,168.65,168.46,7.44361097]
[1729498908845,22.14,168.65,168.49,2.9685]
[1729498910543,1.0,168.64,168.41,5.7346]
[1729498911137,22.2,168.63,168.41,5.7346]
[1729498911739,22.2,168.63,168.48,2.9686]
[1729498912044,22.2,168.63,168.48,4.4]
[1729498912347,22.2,168.63,168.48,7.3687]
[1729498918543,22.2,168.63,168.48,4.4]
[1729498918936,22.2,168.63,168.48,7.3687]
[1729498921947,22.2,168.63,168.48,4.4]
[1729498922145,22.2,168.63,168.49,2.9685]
[1729498922644,22.2,168.63,168.48,7.3686]
[1729498923837,22.2,168.63,168.48,4.4]
[1729498924240,22.2,168.63,168.45,4.4]
[1729498924550,22.2,168.63,168.45,7.3692]
[1729498924847,22.2,168.63,168.43,4.4]
[1729498925047,22.2,168.63,168.43,2.9695]
[1729498925248,22.2,168.63,168.43,7.3695]
[1729498925739,8.41448799,168.62,168.43,7.3695]
[1729498925941,17.8,168.61,168.43,7.3695]
[1729498926345,17.8,168.61,168.43,4.4]
[1729498926546,2.6165,168.6,168.44,2.9694]
[1729498926744,17.8,168.58,168.44,2.9694]
[1729498926946,1.2386,168.57,168.44,2.9694]
[1729498927255,4.13809058,168.57,168.44,2.9694]
[1729498927448,1.2386,168.57,168.44,2.9694]
[1729498928045,4.20491614,168.57,168.44,2.9694]
[1729498928244,17.8,168.56,168.43,4.4]
[1729498928447,4.4,168.55,168.43,4.4]
[1729498928949,2.6846,168.54,168.43,4.4]
[1729498929850,2.6846,168.54,168.42,4.235]
[1729498930144,2.6846,168.54,168.42,7.3697]
[1729498930547,20.4846,168.54,168.41,7.4099]
[1729498930740,20.4846,168.54,168.41,4.44]
[1729498932043,20.4846,168.54,168.4,2.9701]
[1729498932648,20.4846,168.54,168.38,7.4103]
[1729498932845,20.4846,168.54,168.38,4.44]
[1729498933844,1.3538,168.54,168.41,2.9698]
[1729498934044,1.3538,168.54,168.42,5.6636]
[1729498934244,4.44,168.53,168.38,1.48553332]
[1729498934445,4.44,168.53,168.39,4.44]
[1729498934848,1.3538,168.54,168.39,4.44]
[1729498935045,4.44,168.52,168.46,2.969]
[1729498935352,5.7938,168.54,168.46,2.969]
[1729498936355,5.7938,168.54,168.44,1.2252]
[1729498936656,4.44,168.53,168.37,1.4855573]
[1729498936849,4.44,168.53,168.38,5.9255573]
[1729498937050,4.44,168.53,168.41,2.9699]
[1729498937246,4.44,168.53,168.38,4.44]
[1729498937658,4.44,168.53,168.41,2.9699]
[1729498938753,1.3538,168.54,168.43,2.9695]
[1729498939056,4.44,168.53,168.43,2.9695]
[1729498939851,4.44,168.53,168.38,4.44]
[1729498940455,4.44,168.53,168.43,2.9694]
[1729498941452,17.83,168.52,168.17,8.26199989]
[1729498941653,17.83,168.52,168.39,2.9702]
[1729498941852,2.5236,168.51,168.36,6.9269]
[1729498942156,4.44,168.5,168.42,2.9696]
[1729498942357,4.44,168.5,168.4,4.44]
[1729498942959,4.44,168.5,168.43,2.9695]
[1729498943159,4.44,168.5,168.4,4.44]
[1729498943556,4.44,168.5,168.38,4.44]
[1729498944261,2.5236,168.51,168.4,2.9701]
[1729498944559,4.44,168.5,168.4,2.9701]
[1729498945359,2.5236,168.51,168.42,2.9696]
[1729498945555,4.44,168.5,168.38,4.44]
[1729498945755,4.44,168.52,168.39,1.48572704]
[1729498945956,4.44,168.52,168.44,2.9693]
[1729498946159,4.44,168.52,168.43,4.44]
[1729498946864,4.44,168.52,168.44,2.9694]
[1729498948463,4.44,168.52,168.43,4.44]
[1729498949459,4.44,168.52,168.4,4.26582335]
[1729498949754,4.44,168.52,168.43,4.44]
[1729498949953,4.44,168.52,168.4,4.26582335]
[1729498949954,4.44,168.52,168.4,3.04422335]
[1729498950153,2.6364,168.51,168.36,6.9269]
[1729498950356,4.44,168.5,168.41,2.9699]
[1729498950558,4.44,168.5,168.36,6.9269]
[1729498950759,4.44,168.5,168.37,1.4858396]
[1729498950962,4.44,168.5,168.39,2.9702]
[1729498952360,4.44,168.5,168.4,2.9701]
[1729498953162,4.44,168.5,168.4,7.4101]
[1729498954867,2.6364,168.51,168.4,7.4101]
[1729498955166,2.96631614,168.57,168.41,2.75777467]
[1729498955469,1.2276,168.55,168.42,1.48538346]
[1729498955665,1.2276,168.55,168.43,1.2338]
[1729498955866,1.2276,168.55,168.45,2.9692]
[1729498956262,6.0276,168.55,168.45,2.9692]
[1729498957269,6.0276,168.55,168.45,7.7692]
[1729498957671,6.0276,168.55,168.45,4.8]
[1729498963065,6.0276,168.55,168.45,7.7691]
[1729498963572,6.0276,168.55,168.46,2.9689]
[1729498964267,6.0276,168.55,168.45,4.8]
[1729498964469,1.2276,168.55,168.45,4.8]
[1729498965267,1.2276,168.55,168.48,2.9685]
[1729498965665,6.152,168.57,168.45,4.8]
[1729498965861,4.8,168.57,168.49,2.9685]
[1729498966070,4.8,168.57,168.49,7.7685]
[1729498967069,4.8,168.59,168.5,2.9682]
[1729498969176,4.8,168.59,168.5,4.2847]
[1729498969379,4.8,168.59,168.51,2.9681]
[1729498972971,1.2616,168.6,168.51,2.9681]
[1729498973177,6.0616,168.6,168.51,2.9681]
[1729498973675,6.0616,168.6,168.5,5.5317]
[1729498974381,1.2616,168.6,168.5,5.5317]
[1729498974574,6.0616,168.6,168.5,5.5317]
[1729498976477,6.0616,168.6,168.5,5.5318]
[1729498980288,6.0616,168.6,168.5,2.5635]
[1729498980486,6.0616,168.6,168.48,4.8]
[1729498980792,14.52783432,168.6,168.48,4.8]
[1729498981380,32.35783432,168.6,168.43,3.9223]
[1729498981585,32.35783432,168.6,168.44,6.28535721]
[1729498981781,26.29623432,168.59,168.45,2.9691]
[1729498981989,8.46623432,168.58,168.45,2.9691]
[1729498982389,1.3223,168.57,168.45,2.9691]
[1729498982589,7.7302606,168.56,168.45,2.9691]
[1729498982987,25.5602606,168.56,168.43,3.9223]
[1729498983186,1.2227,168.55,168.43,7.4504]
[1729498983592,1.25,168.54,168.43,7.4504]
[1729498984186,1.25,168.54,168.43,1.3221]
[1729498984390,27.54880188,168.54,168.43,1.3221]
[1729498984594,19.08,168.54,168.43,1.3221]
[1729498985485,1.25,168.54,168.43,1.3221]
[1729498985693,19.08,168.54,168.43,1.3221]
[1729498986090,19.08,168.54,168.41,4.8]
[1729498986786,1.25,168.54,168.41,4.8]
[1729498986992,19.08,168.54,168.41,4.8]
[1729498988194,1.25,168.54,168.41,4.8]
[1729498988389,19.08,168.54,168.41,4.8]
[1729498989491,1.25,168.54,168.41,4.8]
[1729498989698,19.08,168.54,168.41,4.8]
[1729498989990,4.66,168.53,168.41,4.8]
[1729498990191,1.25,168.54,168.41,4.8]
[1729498990390,1.25,168.54,168.46,2.9689]
[1729498990590,1.25,168.54,168.46,7.6289]
[1729498995497,1.25,168.54,168.46,4.66]
[1729498996296,1.25,168.54,168.47,1.2493]
[1729498996901,1.25,168.54,168.48,2.9687]
[1729498997203,1.25,168.54,168.47,1.2493]
[1729498999201,1.25,168.54,168.39,3.01581999]
[1729498999398,1.25,168.54,168.4,7.44748815]
[1729498999594,1.25,168.54,168.41,7.56666793]
[1729498999801,1.25,168.54,168.43,2.9695]
[1729499003101,1.25,168.54,168.44,2.9692]
[1729499006404,1.25,168.54,168.42,4.66]
[1729499006604,1.25,168.54,168.42,7.6296]
[1729499011709,1.25,168.54,168.42,4.66]
[1729499012709,1.25,168.54,168.4,7.17312334]
[1729499013011,1.25,168.54,168.41,4.66]
[1729499013400,1.25,168.54,168.4,7.17312334]
[1729499013607,1.25,168.54,168.41,4.66]
[1729499017112,1.25,168.54,168.41,7.6299]
[1729499017313,4.56,168.53,168.41,4.66]
[1729499018210,4.56,168.53,168.44,2.9693]
[1729499018413,4.56,168.53,168.45,5.8017]
[1729499018810,4.56,168.53,168.46,1.3378]
[1729499026315,4.56,168.53,168.43,4.56]
[1729499031920,4.56,168.53,168.42,4.56]
[1729499038519,22.39,168.53,168.4,2.5596]
[1729499038725,1.316,168.52,168.4,2.5596]
[1729499039218,1.2286,168.51,168.4,2.5596]
[1729499039523,19.0586,168.51,168.4,2.5596]
[1729499040515,1.2286,168.51,168.3,2.91728858]
[1729499040721,1.2286,168.51,168.31,6.04590435]
[1729499040918,1.2286,168.51,168.32,8.66560435]
[1729499040919,17.83,168.5,168.32,8.66560435]
[1729499041226,30.86574656,168.49,168.33,4.45710435]
[1729499041426,17.83,168.47,168.33,1.48590435]
[1729499041631,4.56,168.47,168.38,2.9703]
[1729499041816,4.56,168.47,168.39,2.5906]
[1729499042318,4.56,168.47,168.32,3.02259396]
[1729499042319,4.56,168.47,168.34,2.971]
[1729499042515,4.56,168.47,168.35,2.80792261]
[1729499042826,4.56,168.47,168.35,1.3217]
[1729499044319,4.56,168.46,168.33,2.9712]
[1729499044626,4.56,168.45,168.33,4.2173]
[1729499046528,3.00363739,168.46,168.33,4.2173]
[1729499046728,4.56,168.45,168.33,4.2173]
[1729499047029,7.55971093,168.45,168.33,4.2173]
[1729499050031,2.9973328,168.62,168.33,4.2173]
[1729499050032,17.83,168.54,168.33,1.2461]
[1729499050222,13.02764068,168.53,168.34,1.48607058]
[1729499050524,17.34745137,168.53,168.35,4.56]
[1729499050728,17.34745137,168.53,168.36,1.48601388]
[1729499050929,8.87981069,168.53,168.41,2.9698]
[1729499052427,17.34866314,168.53,168.41,2.9698]
[1729499052732,8.87981069,168.53,168.41,2.9698]
[1729499052929,4.56,168.52,168.42,2.9696]
[1729499053431,4.56,168.52,168.4,6.94184573]
[1729499055232,4.56,168.52,168.43,2.9694]
[1729499055629,4.56,168.52,168.4,3.9017]
[1729499055829,4.56,168.52,168.41,2.9698]
[1729499056232,4.56,168.52,168.45,2.9691]
[1729499056831,4.56,168.52,168.39,4.56]
[1729499057033,4.56,168.52,168.43,2.9695]
[1729499059028,4.56,168.52,168.43,4.56]
[1729499059833,4.56,168.52,168.44,2.9693]
[1729499060938,4.56,168.52,168.43,4.56]
[1729499061540,4.56,168.52,168.43,7.5295]
[1729499062338,4.56,168.52,168.41,1.2471]
[1729499074856,13.03835299,168.52,168.41,1.2471]
[1729499076053,4.56,168.52,168.41,1.2471]
[1729499076451,13.03835299,168.52,168.41,1.2471]
[1729499076756,13.03835299,168.52,168.4,1.3284]
[1729499077056,30.86835299,168.52,168.36,4.68]
[1729499077259,26.30835299,168.51,168.36,4.68]
[1729499077449,8.47835299,168.5,168.36,4.68]
[1729499077649,26.30835299,168.5,168.35,1.2871]
[1729499077857,2.5364,168.49,168.35,5.9671]
[1729499078051,22.51,168.48,168.35,1.2871]
[1729499078256,8.47835299,168.47,168.35,1.2871]
[1729499078451,27.60705299,168.47,168.34,1.2911]
[1729499078654,26.30835299,168.46,168.31,119.11910303]
[1729499078953,8.47835299,168.45,168.31,119.11910303]
[1729499079154,4.68,168.44,168.31,119.11910303]
[1729499083055,4.68,168.44,168.31,114.43910303]
[1729499083459,1.294,168.43,168.31,114.43910303]
[1729499083960,1.294,168.43,168.3,4.68]
[1729499084162,1.294,168.43,168.29,6.8064]
[1729499084163,1.3309,168.42,168.29,6.8064]
[1729499084460,1.3309,168.42,168.28,2.9722]
[1729499084661,1.3202,168.41,168.28,2.9722]
[1729499084855,4.68,168.4,168.28,2.9722]
[1729499085262,4.68,168.39,168.28,2.9722]
[1729499086156,4.68,168.39,168.27,3.9022]
[1729499086864,4.68,168.39,168.28,2.9721]
[1729499087557,4.68,168.39,168.27,3.9022]
[1729499087863,4.68,168.39,168.3,2.9719]
[1729499088257,4.68,168.38,168.29,4.68]
[1729499088857,4.68,168.38,168.31,2.9715]
[1729499090161,4.68,168.38,168.29,4.68]
[1729499090864,4.68,168.38,168.31,2.9717]
[1729499092568,4.68,168.4,168.32,2.9715]
[1729499092767,1.3202,168.41,168.33,1.2976]
[1729499093066,6.0002,168.41,168.33,1.2976]
[1729499094166,6.0002,168.41,168.33,4.2688]
[1729499094660,6.0002,168.41,168.33,1.2976]
[1729499108675,6.0002,168.41,168.3,2.9717]
[1729499108870,6.0002,168.41,168.28,1.2341]